fUST/lending_fUST_20251022
["ID","MTS","AMOUNT","RATE_DAILY","PERIOD"]
[391994110,1761067850322,-175.648921,0.0002489,7]
[391994111,1761067850331,-151.0,0.0002489,7]
[391994112,1761067850340,-175.648921,0.0002489,7]
[391994113,1761067850349,-175.648921,0.0002489,7]
[391994114,1761067850358,-151.0,0.0002489,7]
[391994115,1761067850367,-159.644732,0.0002489,7]
[391994116,1761067850377,-175.648916,0.0002489,7]
[391994117,1761067850386,-1088.679184,0.0002489,7]
[391994118,1761067850395,-1088.679184,0.0002489,7]
[391994119,1761067850404,-1088.679184,0.0002489,7]
[391994120,1761067850414,-1088.679184,0.0002489,7]
[391994121,1761067850424,-1088.679184,0.0002489,7]
[391994122,1761067850434,-1088.679184,0.0002489,7]
[391994123,1761067850496,-1088.679184,0.0002489,7]
[391994124,1761067850510,-1088.679188,0.0002489,7]
[391994125,1761067850521,-151.0,0.0002489,7]
[391994126,1761067850530,-151.0,0.0002489,7]
[391994127,1761067850540,-151.0,0.0002489,7]
[391994128,1761067850549,-151.0,0.0002489,7]
[391994129,1761067850559,-151.0,0.0002489,7]
[391994130,1761067850568,-151.0,0.0002489,7]
[391994131,1761067850578,-151.0,0.0002489,7]
[391994132,1761067850587,-229.473534,0.0002489,7]
[391994133,1761067850596,-759.666803,0.0002489,7]
[391994134,1761067850605,-759.666803,0.0002489,7]
[391994135,1761067850614,-759.666803,0.0002489,7]
[391994136,1761067850624,-759.666803,0.0002489,7]
[391994137,1761067850633,-759.666803,0.0002489,7]
[391994138,1761067850642,-759.666803,0.0002489,7]
[391994139,1761067850652,-759.666803,0.0002489,7]
[391994140,1761067850661,-759.666794,0.0002489,7]
[391994141,1761067850671,-223.165598,0.0002489,7]
[391994142,1761067850680,-329.501783,0.0002489,7]
[391994143,1761067850691,-223.165598,0.0002489,7]
[391994144,1761067850705,-329.501783,0.0002489,7]
[391994145,1761067850714,-309.931659,0.0002489,7]
[391994146,1761067850724,-309.931659,0.0002489,7]
[391994147,1761067850733,-216.62469,0.0002489,7]
[391994148,1761067850743,-216.62469,0.0002489,7]
[391994149,1761067850753,-223.165598,0.0002489,7]
[391994150,1761067850764,-329.501783,0.0002489,7]
[391994151,1761067850774,-223.165598,0.0002489,7]
[391994152,1761067850783,-309.931659,0.0002489,7]
[391994153,1761067850792,-309.931659,0.0002489,7]
[391994154,1761067850802,-216.62469,0.0002489,7]
[391994155,1761067850811,-216.62469,0.0002489,7]
[391994156,1761067850820,-329.501783,0.0002489,7]
[391994157,1761067850829,-223.165598,0.0002489,7]
[391994158,1761067850838,-216.62469,0.0002489,7]
[391994159,1761067850848,-223.165598,0.0002489,7]
[391994160,1761067850857,-329.501783,0.0002489,7]
[391994161,1761067850867,-216.62469,0.0002489,7]
[391994162,1761067850876,-309.931659,0.0002489,7]
[391994163,1761067850886,-309.931659,0.0002489,7]
[391994164,1761067850895,-329.501783,0.0002489,7]
[391994165,1761067850905,-223.165598,0.0002489,7]
[391994166,1761067850914,-223.165596,0.0002489,7]
[391994167,1761067850924,-151.0,0.000249,6]
[391994168,1761067850933,-151.0,0.000249,5]
[391994169,1761067850946,-151.0,0.000249,5]
[391994170,1761067850966,-151.0,0.000249,7]
[391994171,1761067850983,-151.0,0.000249,5]
[391994172,1761067851003,-151.0,0.000249,10]
[391994173,1761067851026,-151.0,0.000249,7]
[391994174,1761067851044,-151.0,0.000249,10]
[391994175,1761067851062,-151.0,0.000249,5]
[391994176,1761067851077,-151.0,0.000249,7]
[391994177,1761067851094,-151.0,0.000249,6]
[391994178,1761067851112,-151.0,0.000249,9]
[391994179,1761067851131,-151.0,0.000249,7]
[391994180,1761067851146,-151.0,0.000249,7]
[391994181,1761067851161,-151.0,0.000249,7]
[391994182,1761067851179,-151.0,0.000249,7]
[391994183,1761067851197,-151.0,0.000249,7]
[391994184,1761067851210,-151.0,0.000249,7]
[391994185,1761067851224,-151.0,0.000249,7]
[391994186,1761067851239,-151.0,0.000249,7]
[391994187,1761067851253,-151.0,0.000249,7]
[391994188,1761067851268,-151.0,0.000249,7]
[391994189,1761067851283,-151.0,0.000249,7]
[391994190,1761067851297,-151.0,0.000249,7]
[391994191,1761067851313,-151.0,0.000249,7]
[391994192,1761067851328,-151.0,0.000249,7]
[391994193,1761067851345,-236.757846,0.000249,7]
[391994194,1761067851360,-151.0,0.000249,7]
[391994195,1761067851375,-151.0,0.000249,7]
[391994196,1761067851390,-151.0,0.000249,10]
[391994197,1761067851405,-151.0,0.000249,9]
[391994198,1761067851419,-151.0,0.000249,8]
[391994199,1761067851433,-177.831752,0.000249,7]
[391994200,1761067851449,-213.037521,0.000249,7]
[391994201,1761067851463,-213.037521,0.000249,7]
[391994202,1761067851478,-177.831752,0.000249,7]
[391994203,1761067851492,-177.831752,0.000249,7]
[391994204,1761067851506,-213.037521,0.000249,7]
[391994205,1761067851523,-177.831748,0.000249,7]
[391994206,1761067851538,-213.037526,0.000249,7]
[391994207,1761067851553,-183.917498,0.000249,7]
[391994208,1761067851568,-183.917498,0.000249,7]
[391994209,1761067851583,-183.917498,0.000249,7]
[391994210,1761067851597,-183.917502,0.000249,7]
[391994211,1761067851612,-152.02024,0.000249,7]
[391994212,1761067851627,-152.02024,0.000249,7]
[391994213,1761067851642,-152.02024,0.000249,7]
[391994214,1761067851657,-152.020245,0.000249,7]
[391994215,1761067851754,-151.0,0.000249,7]
[391994216,1761067851765,-151.0,0.000249,7]
[391994217,1761067851774,-151.0,0.000249,9]
[391994218,1761067851784,-151.0,0.000249,6]
[391994219,1761067851794,-151.0,0.000249,9]
[391994220,1761067851809,-151.0,0.000249,8]
[391994221,1761067851828,-325071.35436019,0.000249,2]
[391994222,1761067852041,-1027.16553316,0.000249,2]
[391994223,1761067853047,-729.75,0.00024132,10]
[391994224,1761067853059,-500.0,0.00024141,2]
[391994225,1761067853068,-500.0,0.00024141,2]
[391994226,1761067853078,-500.0,0.00024141,2]
[391994227,1761067853088,-500.0,0.00024141,2]
[391994228,1761067853099,-500.0,0.00024141,2]
[391994229,1761067853111,-500.0,0.00024141,2]
[391994230,1761067853120,-500.0,0.00024141,2]
[391994231,1761067853130,-500.0,0.00024141,2]
[391994232,1761067853140,-500.0,0.00024141,2]
[391994233,1761067853150,-402.91482006,0.00024141,2]
[391994234,1761067853161,-500.0,0.00024141,2]
[391994235,1761067853170,-500.0,0.00024141,2]
[391994236,1761067853180,-448.55919505,0.00024141,2]
[391994237,1761067853190,-500.0,0.00024141,2]
[391994238,1761067853200,-372.57598489,0.00024141,2]
[391994239,1761067853211,-127.42401511,0.00024141,2]
[391994240,1761067853221,-500.0,0.00024141,2]
[391994241,1761067853231,-524.62757599,0.00024141,2]
[391994242,1761067853240,-414.91594397,0.00024141,2]
[391994243,1761067853249,-500.0,0.00024141,2]
[391994244,1761067853259,-594.96052521,0.00024141,2]
[391994245,1761067853270,-500.0,0.00024141,2]
[391994246,1761067853279,-500.0,0.00024141,2]
[391994247,1761067853288,-500.0,0.00024141,2]
[391994248,1761067853298,-500.0,0.00024141,2]
[391994249,1761067853307,-500.0,0.00024141,2]
[391994250,1761067853317,-435.07193972,0.00024141,2]
[391994251,1761067853334,-64.92806028,0.00024141,2]
[391994252,1761067853343,-500.0,0.00024141,2]
[391994253,1761067853353,-250.0,0.00024141,2]
[391994254,1761067853362,-500.0,0.00024141,2]
[391994255,1761067853371,-500.0,0.00024141,2]
[391994256,1761067853381,-500.0,0.00024141,2]
[391994257,1761067853390,-500.0,0.00024141,2]
[391994258,1761067853400,-500.0,0.00024141,2]
[391994259,1761067853410,-500.0,0.00024141,2]
[391994260,1761067853419,-193.17193972,0.00024141,2]
[391994261,1761067853431,-306.82806028,0.00024141,2]
[391994262,1761067853441,-500.0,0.00024141,2]
[391994263,1761067853451,-500.0,0.00024141,2]
[391994264,1761067853460,-500.0,0.00024141,2]
[391994265,1761067853470,-500.0,0.00024141,2]
[391994266,1761067853479,-32.27199863,0.00024141,2]
[391994267,1761067853491,-374.62488416,0.00024141,2]
[391994268,1761067853501,-500.0,0.00024141,2]
[391994269,1761067853511,-500.0,0.00024141,2]
[391994270,1761067853522,-500.0,0.00024141,2]
[391994271,1761067853532,-500.0,0.00024141,2]
[391994272,1761067853541,-500.0,0.00024141,2]
[391994273,1761067853551,-500.0,0.00024141,2]
[391994274,1761067853561,-500.0,0.00024141,2]
[391994275,1761067853570,-500.0,0.00024141,2]
[391994276,1761067853580,-500.0,0.00024141,2]
[391994277,1761067853590,-500.0,0.00024658,2]
[391994278,1761067853599,-500.0,0.00024658,2]
[391994279,1761067853609,-500.0,0.00024658,2]
[391994280,1761067853619,-407.35280586,0.00024658,2]
[391994281,1761067853700,-92.64719414,0.00024658,2]
[391994282,1761067853710,-500.0,0.00024658,2]
[391994283,1761067853720,-500.0,0.00024658,2]
[391994284,1761067853730,-500.0,0.00024658,2]
[391994285,1761067853740,-500.0,0.00024658,2]
[391994286,1761067853749,-500.0,0.00024658,2]
[391994287,1761067853759,-500.0,0.00024658,2]
[391994288,1761067853770,-500.0,0.00024658,2]
[391994289,1761067853779,-500.0,0.00024658,2]
[391994290,1761067853789,-500.0,0.00024658,2]
[391994291,1761067853799,-500.0,0.00024658,2]
[391994292,1761067853809,-500.0,0.00024658,2]
[391994293,1761067853819,-500.0,0.00024658,2]
[391994294,1761067853828,-500.0,0.00024658,2]
[391994295,1761067853838,-500.0,0.00024658,2]
[391994296,1761067853847,-500.0,0.00024658,2]
[391994297,1761067853857,-500.0,0.00024658,2]
[391994298,1761067853867,-500.0,0.00024658,2]
[391994299,1761067853876,-500.0,0.00024658,2]
[391994300,1761067853887,-500.0,0.00024658,2]
[391994301,1761067853897,-500.0,0.00024658,2]
[391994302,1761067853907,-500.0,0.00024658,2]
[391994303,1761067853917,-500.0,0.00024658,2]
[391994304,1761067853927,-500.0,0.00024658,2]
[391994305,1761067853936,-500.0,0.00024658,2]
[391994306,1761067853945,-500.0,0.00024658,2]
[391994307,1761067853955,-500.0,0.00024658,2]
[391994308,1761067853966,-500.0,0.00024658,2]
[391994309,1761067853977,-500.0,0.00024658,2]
[391994310,1761067853987,-500.0,0.00024658,2]
[391994311,1761067853998,-500.0,0.00024658,2]
[391994312,1761067854008,-500.0,0.00024658,2]
[391994313,1761067854022,-500.0,0.00024658,2]
[391994314,1761067854034,-264.72507191,0.00024658,2]
[391994315,1761067854623,-235.27492809,0.00024658,2]
[391994316,1761067854634,-500.0,0.00024658,2]
[391994317,1761067854644,-500.0,0.00024658,2]
[391994318,1761067854653,-500.0,0.00024658,2]
[391994319,1761067854663,-500.0,0.00024658,2]
[391994320,1761067854672,-249.87513109,0.00024658,2]
[391994321,1761067854681,-500.0,0.00024658,2]
[391994322,1761067854691,-500.0,0.00024658,2]
[391994323,1761067854700,-500.0,0.00024658,2]
[391994324,1761067854710,-500.0,0.00024658,2]
[391994325,1761067854720,-500.0,0.00024658,2]
[391994326,1761067854730,-500.0,0.00024658,2]
[391994327,1761067854739,-500.0,0.00024658,2]
[391994328,1761067854749,-500.0,0.00024658,2]
[391994329,1761067854759,-500.0,0.00024658,2]
[391994330,1761067854771,-500.0,0.00024658,2]
[391994331,1761067854781,-2730.67914613,0.00024867,3]
[391994332,1761067854837,-276.54085387,0.00024867,3]
[391994333,1761067854847,-186.026088,0.00024873,7]
[391994334,1761067854857,-186.026088,0.00024873,7]
[391994335,1761067854866,-186.026088,0.00024873,7]
[391994336,1761067854876,-216.62469,0.00024879,7]
[391994337,1761067854885,-186.026088,0.00024879,7]
[391994338,1761067854895,-151.0,0.00024879,7]
[391994339,1761067854904,-151.0,0.00024879,7]
[391994340,1761067854913,-186.026088,0.00024879,7]
[391994341,1761067854923,-151.0,0.00024879,7]
[391994342,1761067854933,-151.0,0.00024879,7]
[391994343,1761067854942,-186.026088,0.00024879,7]
[391994344,1761067854951,-662.222353,0.00024879,7]
[391994345,1761067854959,-662.222353,0.00024879,7]
[391994346,1761067854967,-151.0,0.00024879,7]
[391994347,1761067854976,-151.0,0.00024879,7]
[391994348,1761067854984,-3421.61088049,0.00024879,2]
[391994349,1761067855107,-14063.63751901,0.00024879,2]
[391994350,1761067855117,-151.0,0.00024879,7]
[391994351,1761067855127,-151.0,0.00024879,7]
[391994352,1761067855136,-287.394986,0.00024879,7]
[391994353,1761067855146,-287.394986,0.00024879,7]
[391994354,1761067855155,-151.0,0.00024879,7]
[391994355,1761067855165,-151.0,0.00024879,7]
[391994356,1761067855174,-662.222353,0.00024879,7]
[391994357,1761067855184,-151.0,0.00024879,7]
[391994358,1761067855193,-662.222353,0.00024879,7]
[391994359,1761067855202,-287.394986,0.00024879,7]
[391994360,1761067855212,-287.394986,0.00024879,7]
[391994361,1761067855221,-608.13,0.0002488,10]
[391994362,1761067855230,-186.026088,0.0002488,7]
[391994363,1761067855240,-198.479101,0.0002488,2]
[391994364,1761067855250,-216.62469,0.0002488,7]
[391994365,1761067855259,-186.026088,0.0002488,7]
[391994366,1761067855270,-151.0,0.0002488,7]
[391994367,1761067855280,-186.026088,0.0002488,7]
[391994368,1761067855290,-151.0,0.0002488,7]
[391994369,1761067855299,-186.026088,0.0002488,7]
[391994370,1761067855309,-662.222353,0.0002488,7]
[391994371,1761067855318,-151.0,0.0002488,7]
[391994372,1761067855328,-151.0,0.0002488,7]
[391994373,1761067855337,-287.394986,0.0002488,7]
[391994374,1761067855347,-151.0,0.0002488,7]
[391994375,1761067855356,-287.394986,0.0002488,7]
[391994376,1761067855365,-662.222353,0.0002488,7]
[391994377,1761067855375,-329.501783,0.0002489,7]
[391994378,1761067855384,-309.931659,0.0002489,7]
[391994379,1761067855394,-329.501778,0.0002489,7]
[391994380,1761067855403,-309.931656,0.0002489,7]
[391994381,1761067855412,-186.026088,0.0002489,7]
[391994382,1761067855421,-216.62469,0.0002489,7]
[391994383,1761067855430,-186.026088,0.0002489,7]
[391994384,1761067855439,-216.624696,0.0002489,7]
[391994385,1761067855448,-186.026088,0.0002489,7]
[391994386,1761067855459,-186.026088,0.0002489,7]
[391994387,1761067855469,-151.0,0.0002489,7]
[391994388,1761067855478,-186.026088,0.0002489,7]
[391994389,1761067855488,-151.0,0.0002489,7]
[391994390,1761067855497,-186.026088,0.0002489,7]
[391994391,1761067855507,-151.0,0.0002489,7]
[391994392,1761067855516,-151.0,0.0002489,7]
[391994393,1761067855525,-186.026088,0.0002489,7]
[391994394,1761067855534,-186.026084,0.0002489,7]
[391994395,1761067855544,-662.222353,0.0002489,7]
[391994396,1761067855554,-662.222353,0.0002489,7]
[391994397,1761067855563,-151.0,0.0002489,7]
[391994398,1761067855661,-151.0,0.0002489,7]
[391994399,1761067855672,-151.0,0.0002489,7]
[391994400,1761067855681,-151.0,0.0002489,7]
[391994401,1761067855690,-287.394986,0.0002489,7]
[391994402,1761067855699,-208.750856,0.0002489,7]
[391994403,1761067855710,-287.394986,0.0002489,7]
[391994404,1761067855719,-287.394986,0.0002489,7]
[391994405,1761067855728,-662.222353,0.0002489,7]
[391994406,1761067855737,-662.222353,0.0002489,7]
[391994407,1761067855746,-287.394986,0.0002489,7]
[391994408,1761067855754,-79943.39856348,0.000249,2]
[391994409,1761067855767,-37748.04385179,0.000249,2]
[391994410,1761067855778,-49215.58900338,0.000249,2]
[391994411,1761067855787,-212205.46344722,0.0002496,2]
[391994412,1761067855796,-160.595,0.00024972,2]
[391994413,1761067855805,-500.0,0.00024973,2]
[391994414,1761067855814,-500.0,0.00024973,2]
[391994415,1761067855822,-500.0,0.00024973,2]
[391994416,1761067855831,-559.77687235,0.00024973,2]
[391994417,1761067855840,-500.0,0.00024973,2]
[391994418,1761067855849,-500.0,0.00024973,2]
[391994419,1761067855857,-500.0,0.00024973,2]
[391994420,1761067855867,-500.0,0.00024973,2]
[391994421,1761067855876,-500.0,0.00024973,2]
[391994422,1761067855885,-500.52507432,0.00024973,2]
[391994423,1761067855894,-500.0,0.00024973,2]
[391994424,1761067855903,-500.0,0.00024973,2]
[391994425,1761067855912,-500.0,0.00024973,2]
[391994426,1761067855920,-500.0,0.00024973,2]
[391994427,1761067855929,-500.0,0.00024973,2]
[391994428,1761067855938,-411.03744154,0.00024973,2]
[391994429,1761067855947,-500.0,0.00024973,2]
[391994430,1761067855955,-403.05172659,0.00024979,7]
[391994431,1761067855965,-100000.0,0.0002499,2]
[391994432,1761067855974,-52678.95928166,0.00025,2]
[391994433,1761067855984,-49043.83,0.00025,7]
[391994434,1761067855993,-17533.0,0.00025,2]
[391994435,1761067856005,-1000.0,0.00025,14]
[391994436,1761067856018,-444.12769036,0.00025,7]
[391994437,1761067856028,-18507.16362398,0.00025,3]
[391994438,1761067856038,-362.9466415,0.00025,2]
[391994439,1761067856047,-500.0,0.00025,2]
[391994440,1761067856056,-8723.34304623,0.00025021,2]
[391994441,1761067856066,-381.0,0.00025033,2]
[391994442,1761067856075,-636.67741215,0.0002511,2]
[391994443,1761067856085,-175.301,0.00025113,2]
[391994444,1761067856095,-1000.0,0.00025121,2]
[391994445,1761067856104,-1000.0,0.00025121,2]
[391994446,1761067856114,-215.03833466,0.00025165,2]
[391994447,1761067856123,-387.06900238,0.00025165,2]
[391994448,1761067856133,-1116.81430662,0.00025196,2]
[391994449,1761067856143,-502.38690498,0.00025221,2]
[391994450,1761067856153,-503.47484064,0.00025221,2]
[391994451,1761067856162,-1500.0,0.00025268,2]
[391994452,1761067856172,-1500.0,0.00025268,2]
[391994453,1761067856180,-261.40251625,0.00025268,2]
[391994454,1761067856190,-1500.0,0.00025268,2]
[391994455,1761067856199,-1500.0,0.00025268,2]
[391994456,1761067856208,-1500.0,0.00025268,2]
[391994457,1761067856217,-1500.0,0.00025268,2]
[391994458,1761067856227,-500.0,0.00025381,2]
[391994459,1761067856236,-1000.0,0.00025421,2]
[391994460,1761067856244,-1000.0,0.00025421,2]
[391994461,1761067856254,-1000.0,0.00025421,2]
[391994462,1761067856263,-985.33246182,0.00025421,2]
[391994463,1761067856275,-1000.0,0.00025421,2]
[391994464,1761067856284,-1000.0,0.00025421,2]
[391994465,1761067856293,-1000.0,0.00025421,2]
[391994466,1761067856303,-215.04029972,0.00025421,2]
[391994467,1761067856312,-1000.0,0.00025421,2]
[391994468,1761067856322,-1000.0,0.00025421,2]
[391994469,1761067856332,-1000.0,0.00025421,2]
[391994470,1761067856341,-1000.0,0.00025421,2]
[391994471,1761067856351,-1000.0,0.00025421,2]
[391994472,1761067856360,-175.19844775,0.00025421,2]
[391994473,1761067856371,-1000.0,0.00025421,2]
[391994474,1761067856381,-1000.0,0.00025421,2]
[391994475,1761067856391,-160.28789627,0.00025421,2]
[391994476,1761067856401,-1000.0,0.00025421,2]
[391994477,1761067856412,-1000.0,0.00025421,2]
[391994478,1761067856424,-1000.0,0.00025421,2]
[391994479,1761067856437,-1000.0,0.00025421,2]
[391994480,1761067856448,-1000.0,0.00025421,2]
[391994481,1761067856459,-1000.0,0.00025421,2]
[391994482,1761067856468,-444.6524939,0.00025421,2]
[391994483,1761067856477,-1000.0,0.00025421,2]
[391994484,1761067856486,-1000.0,0.00025421,2]
[391994485,1761067856496,-1000.0,0.00025421,2]
[391994486,1761067856505,-1002.95316266,0.00025421,2]
[391994487,1761067856514,-1000.0,0.00025421,2]
[391994488,1761067856525,-1000.0,0.00025421,2]
[391994489,1761067856535,-1000.0,0.00025421,2]
[391994490,1761067856544,-1000.0,0.00025421,2]
[391994491,1761067856553,-1000.0,0.00025421,2]
[391994492,1761067856562,-1000.0,0.00025421,2]
[391994493,1761067856572,-1000.0,0.00025421,2]
[391994494,1761067856581,-1000.0,0.000255,2]
[391994495,1761067856590,-12028.88,0.00025502,3]
[391994496,1761067856599,-1000.0,0.00025521,2]
[391994497,1761067856608,-767.3380039,0.00025521,2]
[391994498,1761067856617,-1000.0,0.00025521,2]
[391994499,1761067856626,-1000.0,0.00025521,2]
[391994500,1761067856635,-1000.0,0.00025521,2]
[391994501,1761067856644,-1000.0,0.00025521,2]
[391994502,1761067856654,-1000.0,0.00025521,2]
[391994503,1761067856663,-836.3433414,0.00025521,2]
[391994504,1761067856672,-1000.0,0.00025521,2]
[391994505,1761067856681,-1000.0,0.00025521,2]
[391994506,1761067856690,-1000.0,0.00025521,2]
[391994507,1761067856699,-1000.0,0.00025521,2]
[391994508,1761067856708,-3906.938608,0.000256,2]
[391994509,1761067856717,-1552.781908,0.000256,2]
[391994510,1761067856726,-612.90868,0.000256,2]
[391994511,1761067856735,-403.05172659,0.000256,7]
[391994512,1761067856744,-160.0,0.000256,2]
[391994513,1761067856754,-1671.52547813,0.00025642,2]
[391994514,1761067856763,-500.0,0.00025655,2]
[391994515,1761067856774,-1500.0,0.00025668,2]
[391994516,1761067856783,-502.33366887,0.00025668,2]
[391994517,1761067856792,-160.60507,0.00025786,2]
[391994518,1761067856801,-160.60507,0.00025786,8]
[391994519,1761067856811,-160.60507,0.00025786,14]
[391994520,1761067856819,-160.60507,0.00025786,20]
[391994521,1761067856829,-160.60507,0.00025786,26]
[391994522,1761067856838,-160.60507,0.00025786,33]
[391994523,1761067856846,-160.60507,0.00025786,39]
[391994524,1761067856855,-160.60507,0.00025786,45]
[391994525,1761067856865,-160.60507,0.00025786,51]
[391994526,1761067856874,-160.60507,0.00025786,57]
[391994527,1761067856883,-160.60507,0.00025786,64]
[391994528,1761067856893,-160.60507,0.00025786,70]
[391994529,1761067856903,-160.60507,0.00025786,76]
[391994530,1761067856912,-160.60507,0.00025786,82]
[391994531,1761067856921,-160.60507,0.00025786,88]
[391994532,1761067856931,-160.60507,0.00025786,95]
[391994533,1761067856941,-160.60507,0.00025786,101]
[391994534,1761067856950,-160.60507,0.00025786,107]
[391994535,1761067856959,-160.60507,0.00025786,113]
[391994536,1761067856968,-24569.4412244,0.000258,2]
[391994537,1761067856978,-2000.0,0.00025816,2]
[391994538,1761067856987,-2000.0,0.00025816,2]
[391994539,1761067856997,-2000.0,0.00025816,2]
[391994540,1761067857006,-2000.0,0.00025816,2]
[391994541,1761067857020,-354.68075207,0.00025816,2]
[391994542,1761067857030,-2000.0,0.00025816,2]
[391994543,1761067857039,-150.0,0.00025867,2]
[391994544,1761067857048,-500.0,0.00025929,2]
[391994545,1761067857058,-1190.10711474,0.00025968,2]
[391994546,1761067857068,-219.33073743,0.00025968,2]
[391994547,1761067857078,-1005.2779944,0.00025968,2]
[391994548,1761067857091,-595.1493224,0.00025968,2]
[391994549,1761067857100,-1500.0,0.00025968,2]
[391994550,1761067857109,-1500.0,0.00025968,2]
[391994551,1761067857120,-470.24125231,0.00025968,2]
[391994552,1761067857131,-1504.82149724,0.00025968,2]
[391994553,1761067857141,-1500.0,0.00025968,2]
[391994554,1761067857151,-1500.0,0.00025968,2]
[391994555,1761067857161,-1500.0,0.00025968,2]
[391994556,1761067857171,-1500.0,0.00025968,2]
[391994557,1761067857182,-1500.0,0.00025968,2]
[391994558,1761067857192,-1314.08070376,0.00025968,2]
[391994559,1761067857202,-915.45091518,0.00025968,2]
[391994560,1761067857212,-1500.0,0.00025968,2]
[391994561,1761067857223,-1500.0,0.00025968,2]
[391994562,1761067857233,-1500.0,0.00025968,2]
[391994563,1761067857243,-1500.0,0.00025968,2]
[391994564,1761067857254,-1500.0,0.00025968,2]
[391994565,1761067857264,-1007.10721589,0.00025968,2]
[391994566,1761067857276,-1500.0,0.00025968,2]
[391994567,1761067857285,-1500.0,0.00025968,2]
[391994568,1761067857294,-1104.35082496,0.00025968,2]
[391994569,1761067857306,-1500.0,0.00025968,2]
[391994570,1761067857315,-1500.0,0.00025968,2]
[391994571,1761067857325,-1500.0,0.00025968,2]
[391994572,1761067857334,-965.34201807,0.00025968,2]
[391994573,1761067857343,-588.0098805,0.00025968,2]
[391994574,1761067857352,-215.85310535,0.00026,2]
[391994575,1761067857362,-200.73278272,0.00026067,2]
[391994576,1761067857371,-506.09700813,0.00026068,2]
[391994577,1761067857380,-1500.0,0.00026068,2]
[391994578,1761067857389,-1500.0,0.00026068,2]
[391994579,1761067857398,-1619.95740976,0.00026068,2]
[391994580,1761067857408,-1500.0,0.00026068,2]
[391994581,1761067857417,-1632.81130939,0.00026068,2]
[391994582,1761067857426,-1500.0,0.00026068,2]
[391994583,1761067857436,-1500.0,0.00026068,2]
[391994584,1761067857445,-1500.0,0.00026068,2]
[391994585,1761067857454,-502.63578388,0.00026068,2]
[391994586,1761067857463,-733.79769536,0.0002611,2]
[391994587,1761067857472,-154.72063269,0.00026116,2]
[391994588,1761067857481,-223.0,0.00026141,2]
[391994589,1761067857491,-420.0,0.00026142,2]
[391994590,1761067857500,-420.0,0.00026142,2]
[391994591,1761067857509,-260.0,0.00026148,2]
[391994592,1761067857520,-192.90409346,0.0002616,2]
[391994593,1761067857529,-150.0,0.00026173,2]
[391994594,1761067857539,-150.0,0.00026173,2]
[391994595,1761067857548,-49043.83,0.000262,7]
[391994596,1761067857558,-500.0,0.00026203,2]
[391994597,1761067857568,-2000.0,0.00026216,2]
[391994598,1761067857579,-6014.44,0.00026237,3]
[391994599,1761067857589,-1680.0,0.00026251,2]
[391994600,1761067857599,-403.05172659,0.000263,3]
[391994601,1761067857611,-1680.0,0.00026348,2]
[391994602,1761067857621,-1335.9880288,0.00026364,2]
[391994603,1761067857631,-2500.0,0.00026364,2]
[391994604,1761067857644,-2500.0,0.00026364,2]
[391994605,1761067857655,-2500.0,0.00026364,2]
[391994606,1761067857664,-2500.0,0.00026364,2]
[391994607,1761067857673,-403.05172659,0.000264,7]
[391994608,1761067857683,-300.0,0.00026415,2]
[391994609,1761067857693,-251.20703215,0.00026438,14]